Department Family,Entity,Date,Expenses Type,Expense Area,Supplier,Transaction Number,  Total  ,
Department of Health,The Christie NHS Foundation Trust,30/07/2020,Medical Equipment, Christie Medical Physics,ADVANCED ACCELERATOR APPLICATIONS LTD,0000642318,"26,097.50",
Department of Health,The Christie NHS Foundation Trust,09/07/2020,Drugs, Christie Medical Physics,ALLIANCE MEDICAL RADIOPHARMACY LIMITED,0000645991,"28,179.00",
Department of Health,The Christie NHS Foundation Trust,23/07/2020,Facilities Management Services, Christie Pathology Partner,CPP FACILITIES LLP,0000645907,"216,551.87",
Department of Health,The Christie NHS Foundation Trust,23/07/2020,Facilities Management Services, Christie Pathology Partner,CPP FACILITIES LLP,0000644654,"194,894.76",
Department of Health,The Christie NHS Foundation Trust,23/07/2020,Facilities Management Services, Christie Pathology Partner,CPP FACILITIES LLP,0000646327,"220,829.26",
Department of Health,The Christie NHS Foundation Trust,23/07/2020,Facilities Management Services, Christie Pathology Partner,CPP FACILITIES LLP,0000645400,"215,474.50",
Department of Health,The Christie NHS Foundation Trust,02/07/2020,Pathology Testing Services, Christie Pathology Partner,THE CHRISTIE PATHOLOGY PARTNERSHIP LLP,0000646326,"387,226.83",
Department of Health,The Christie NHS Foundation Trust,09/07/2020,Printer Management Service, Digital Services,APOGEE CORPORATION LTD,0000645064,"38,553.84",
Department of Health,The Christie NHS Foundation Trust,23/07/2020,Software Package, Digital Services,CIGNITI TECHNOLOGIES UK LTD,0000647326,"26,672.40",
Department of Health,The Christie NHS Foundation Trust,02/07/2020,Software Package, Digital Services,EUROPEAN ELECTRONIQUE LTD,0000646328,"306,864.04",
Department of Health,The Christie NHS Foundation Trust,16/07/2020,Software Licence Fee, Digital Services,IQ HEALTH TECH LTD,0000647062,"39,000.00",
Department of Health,The Christie NHS Foundation Trust,16/07/2020,System Support, Digital Services,SYSTEM C HEALTHCARE,0000647379,"28,018.18",
Department of Health,The Christie NHS Foundation Trust,09/07/2020,Construction Works , Capital,CITY BUILD MANCHESTER LTD,0000646793,"45,633.11",
Department of Health,The Christie NHS Foundation Trust,16/07/2020,Construction Works , Capital,ELECTRICITY NORTH WEST,0000647226,"239,795.80",
Department of Health,The Christie NHS Foundation Trust,23/07/2020,Construction Works , Capital,INTEGRATED HEALTH PROJECTS,0000647760,"1,301,736.52",
Department of Health,The Christie NHS Foundation Trust,16/07/2020,Construction Works , Capital,INTEGRATED HEALTH PROJECTS,0000647241,"1,780,065.84",
Department of Health,The Christie NHS Foundation Trust,30/07/2020,Construction Works , Capital,INTEGRATED HEALTH PROJECTS,0000647761,"776,676.85",
Department of Health,The Christie NHS Foundation Trust,30/07/2020,Project Management Services, Capital,MACE LTD,0000648111,"42,189.60",
Department of Health,The Christie NHS Foundation Trust,30/07/2020,Project Management Services, Capital,MACE LTD,0000648109,"25,750.80",
Department of Health,The Christie NHS Foundation Trust,30/07/2020,Project Management Services, Capital,MACE LTD,0000648110,"63,748.80",
Department of Health,The Christie NHS Foundation Trust,30/07/2020,Project Management Services, Capital,MACE LTD,0000648112,"76,291.20",
Department of Health,The Christie NHS Foundation Trust,09/07/2020,Site Cleaning Service, Capital,NORTHERN INSULATION CONTRACTORS LLP,0000645093,"43,620.00",
Department of Health,The Christie NHS Foundation Trust,09/07/2020,Site Cleaning Service, Capital,NORTHERN INSULATION CONTRACTORS LLP,0000643454,"49,858.20",
Department of Health,The Christie NHS Foundation Trust,23/07/2020,Software Package,The Christie Charity,BLACKBAUD EUROPE LTD,0000647134,"40,653.60",
Department of Health,The Christie NHS Foundation Trust,16/07/2020,Medical Equipment,Manchester Cancer,BK MEDICAL,0000646739,"36,000.00",
Department of Health,The Christie NHS Foundation Trust,02/07/2020,Funding for GM Phase Development,Manchester Cancer,MANCHESTER UNIVERSITY NHS FT,0000635488,"400,000.00",
Department of Health,The Christie NHS Foundation Trust,23/07/2020,Supply of Ventilators ,COVID-19,EQUILIBRIUM HEALTHCARE LTD,0000647742,"92,800.00",
Department of Health,The Christie NHS Foundation Trust,16/07/2020,COVID-19 Support Service,COVID-19,MAX 20 PROJECT SOLUTIONS LTD,0000647090,"48,000.00",
Department of Health,The Christie NHS Foundation Trust,02/07/2020,Out of Hours Cleaning Service,COVID-19,VENTILATION SURVEYS AND SERVICES LTD,0000645554,"53,040.00",
Department of Health,The Christie NHS Foundation Trust,23/07/2020,Medical Equipment,Clin Support & Spec Surgery,FUJIFILM UK LTD,0000647267,"238,187.70",
Department of Health,The Christie NHS Foundation Trust,30/07/2020,Surgical Equipment,Clin Support & Spec Surgery,INTUITIVE SURGICAL LTD,0000647590,"156,000.00",
Department of Health,The Christie NHS Foundation Trust,30/07/2020,Surgical Equipment,Clin Support & Spec Surgery,INTUITIVE SURGICAL LTD,0000647591,"156,000.00",
Department of Health,The Christie NHS Foundation Trust,23/07/2020,Surgical Equipment,Clin Support & Spec Surgery,INTUITIVE SURGICAL LTD,0000647684,"26,730.00",
Department of Health,The Christie NHS Foundation Trust,16/07/2020,Drugs,Drugs,ALCURA UK LIMITED,0000647409,"74,860.59",
Department of Health,The Christie NHS Foundation Trust,23/07/2020,Drugs,Drugs,BAXTER HEALTHCARE LTD,0000647352,"60,027.56",
Department of Health,The Christie NHS Foundation Trust,02/07/2020,Drugs,Drugs,BAXTER HEALTHCARE LTD,0000645525,"91,021.58",
Department of Health,The Christie NHS Foundation Trust,02/07/2020,Drugs,Drugs,BAXTER HEALTHCARE LTD,0000645549,"105,556.19",
Department of Health,The Christie NHS Foundation Trust,02/07/2020,Drugs,Drugs,BAXTER HEALTHCARE LTD,0000645649,"99,554.17",
Department of Health,The Christie NHS Foundation Trust,02/07/2020,Drugs,Drugs,BAXTER HEALTHCARE LTD,0000645654,"110,937.08",
Department of Health,The Christie NHS Foundation Trust,02/07/2020,Drugs,Drugs,BAXTER HEALTHCARE LTD,0000646478,"106,290.79",
Department of Health,The Christie NHS Foundation Trust,01/07/2020,Drugs,Drugs,BAXTER HEALTHCARE LTD,0000001277,"351,380.40",
Department of Health,The Christie NHS Foundation Trust,23/07/2020,Drugs,Drugs,BAXTER HEALTHCARE LTD,0000647832,"351,380.40",
Department of Health,The Christie NHS Foundation Trust,23/07/2020,Drugs,Drugs,BAXTER HEALTHCARE LTD,0000647835,"351,380.40",
Department of Health,The Christie NHS Foundation Trust,01/07/2020,Drugs,Drugs,BAXTER HEALTHCARE LTD,0000001276,"351,380.40",
Department of Health,The Christie NHS Foundation Trust,23/07/2020,Drugs,Drugs,BAXTER HEALTHCARE LTD,0000647353,"104,120.35",
Department of Health,The Christie NHS Foundation Trust,23/07/2020,Drugs,Drugs,BAXTER HEALTHCARE LTD,0000647472,"49,329.60",
Department of Health,The Christie NHS Foundation Trust,23/07/2020,Drugs,Drugs,BAXTER HEALTHCARE LTD,0000647471,"105,977.39",
Department of Health,The Christie NHS Foundation Trust,23/07/2020,Drugs,Drugs,BAXTER HEALTHCARE LTD,0000647837,"351,380.40",
Department of Health,The Christie NHS Foundation Trust,02/07/2020,Drugs,Drugs,BAXTER HEALTHCARE LTD,0000645845,"78,847.72",
Department of Health,The Christie NHS Foundation Trust,02/07/2020,Drugs,Drugs,BAXTER HEALTHCARE LTD,0000645857,"104,694.16",
Department of Health,The Christie NHS Foundation Trust,02/07/2020,Drugs,Drugs,BAXTER HEALTHCARE LTD,0000645867,"82,013.39",
Department of Health,The Christie NHS Foundation Trust,02/07/2020,Drugs,Drugs,BAXTER HEALTHCARE LTD,0000645957,"103,029.44",
Department of Health,The Christie NHS Foundation Trust,02/07/2020,Drugs,Drugs,BAXTER HEALTHCARE LTD,0000646458,"88,076.17",
Department of Health,The Christie NHS Foundation Trust,02/07/2020,Drugs,Drugs,BAXTER HEALTHCARE LTD,0000646459,"114,920.63",
Department of Health,The Christie NHS Foundation Trust,02/07/2020,Drugs,Drugs,BAXTER HEALTHCARE LTD,0000646461,"71,823.29",
Department of Health,The Christie NHS Foundation Trust,02/07/2020,Drugs,Drugs,BAXTER HEALTHCARE LTD,0000646462,"89,688.97",
Department of Health,The Christie NHS Foundation Trust,02/07/2020,Drugs,Drugs,BAXTER HEALTHCARE LTD,0000646466,"55,218.76",
Department of Health,The Christie NHS Foundation Trust,02/07/2020,Drugs,Drugs,BAXTER HEALTHCARE LTD,0000646472,"85,592.76",
Department of Health,The Christie NHS Foundation Trust,02/07/2020,Drugs,Drugs,BAXTER HEALTHCARE LTD,0000646477,"77,566.75",
Department of Health,The Christie NHS Foundation Trust,02/07/2020,Drugs,Drugs,BAXTER HEALTHCARE LTD,0000646454,"169,511.63",
Department of Health,The Christie NHS Foundation Trust,23/07/2020,Drugs,Drugs,BAXTER HEALTHCARE LTD,0000647356,"71,321.75",
Department of Health,The Christie NHS Foundation Trust,02/07/2020,Drugs,Drugs,BAXTER HEALTHCARE LTD,0000645538,"157,547.32",
Department of Health,The Christie NHS Foundation Trust,16/07/2020,Drugs,Drugs,BAXTER HEALTHCARE LTD,0000646611,"75,101.87",
Department of Health,The Christie NHS Foundation Trust,16/07/2020,Drugs,Drugs,BAXTER HEALTHCARE LTD,0000646955,"120,527.66",
Department of Health,The Christie NHS Foundation Trust,16/07/2020,Drugs,Drugs,BAXTER HEALTHCARE LTD,0000646956,"125,322.07",
Department of Health,The Christie NHS Foundation Trust,16/07/2020,Drugs,Drugs,BAXTER HEALTHCARE LTD,0000646957,"84,412.44",
Department of Health,The Christie NHS Foundation Trust,16/07/2020,Drugs,Drugs,BAXTER HEALTHCARE LTD,0000646958,"105,518.80",
Department of Health,The Christie NHS Foundation Trust,16/07/2020,Drugs,Drugs,BAXTER HEALTHCARE LTD,0000647080,"116,503.37",
Department of Health,The Christie NHS Foundation Trust,01/07/2020,Management Fee - May,Drugs,DD BAXTER HEALTHCARE LTD,0000647336,"351,380.40",
Department of Health,The Christie NHS Foundation Trust,23/07/2020,Drugs,Drugs,EAST CHESHIRE NHS TRUST,0000647204,"55,070.06",
Department of Health,The Christie NHS Foundation Trust,02/07/2020,Drugs,Drugs,HEALTHCARE AT HOME LTD,0000646594,"27,656.00",
Department of Health,The Christie NHS Foundation Trust,02/07/2020,Drugs,Drugs,HEALTHCARE AT HOME LTD,0000646549,"26,236.00",
Department of Health,The Christie NHS Foundation Trust,02/07/2020,Drugs,Drugs,HEALTHCARE AT HOME LTD,0000646547,"35,313.00",
Department of Health,The Christie NHS Foundation Trust,16/07/2020,Drugs,Drugs,HEALTHCARE AT HOME LTD,0000647143,"42,165.00",
Department of Health,The Christie NHS Foundation Trust,23/07/2020,Drugs,Drugs,MID CHESHIRE HOSPITALS NHS FT,0000640103,"170,000.00",
Department of Health,The Christie NHS Foundation Trust,23/07/2020,Drugs,Drugs,NOVARTIS PHARMACEUTICALS UK LTD,0000647231,"257,184.00",
Department of Health,The Christie NHS Foundation Trust,07/07/2020,Rates,Estates & Facilities,DD M/CR CITY COUNCIL (RATES),0000647215,"79,484.00",
Department of Health,The Christie NHS Foundation Trust,02/07/2020,Supply of Electricity & Gas Charges,Estates & Facilities,VITAL ENERGI SOLUTIONS LTD,0000644063,"49,524.54",
Department of Health,The Christie NHS Foundation Trust,16/07/2020,Supply of Electricity & Gas Charges,Estates & Facilities,VITAL ENERGI SOLUTIONS LTD,0000645689,"55,573.12",
Department of Health,The Christie NHS Foundation Trust,02/07/2020,Supply of Electricity & Gas Charges,Estates & Facilities,VITAL ENERGI SOLUTIONS LTD,0000644004,"61,116.80",
Department of Health,The Christie NHS Foundation Trust,23/07/2020,Supply of Electricity & Gas Charges,Estates & Facilities,VITAL ENERGI SOLUTIONS LTD,0000647272,"66,586.36",
Department of Health,The Christie NHS Foundation Trust,16/07/2020,Supply of Electricity & Gas Charges,Estates & Facilities,VITAL ENERGI SOLUTIONS LTD,0000645817,"50,960.14",
Department of Health,The Christie NHS Foundation Trust,15/07/2020,NHS Resolution,Finance & Business Developm,NHS LITIGATION AUTHORITY,0000647447,"152,871.30",
Department of Health,The Christie NHS Foundation Trust,23/07/2020,Facilities Management Services,Network Services,CPP FACILITIES LLP,0000642247,"28,758.53",
Department of Health,The Christie NHS Foundation Trust,15/07/2020,Blood Products,Network Services,DD NHS BLOOD AND TRANSPLANT,0000645896,"188,268.30",
Department of Health,The Christie NHS Foundation Trust,09/07/2020,Electricity Invoice - June 2020,Network Services,EDF ENERGY,0000646814,"57,438.35",
Department of Health,The Christie NHS Foundation Trust,09/07/2020,Electricity Invoice - June 2020,Network Services,EDF ENERGY,0000646815,"35,814.85",
Department of Health,The Christie NHS Foundation Trust,30/07/2020,Medical Equipment,Network Services,PHILIPS HEALTHCARE,0000647357,"26,313.73",
Department of Health,The Christie NHS Foundation Trust,02/07/2020,Hotel,Network Services,STAYCITY MANCHESTER LTD,0000642915,"124,635.68",
Department of Health,The Christie NHS Foundation Trust,30/07/2020,Hotel,Network Services,STAYCITY MANCHESTER LTD,0000647540,"177,328.08",
Department of Health,The Christie NHS Foundation Trust,30/07/2020,Hotel,Network Services,STAYCITY MANCHESTER LTD,0000647545,"186,327.52",
Department of Health,The Christie NHS Foundation Trust,16/07/2020,Blood Products,Network Services,THE ANTHONY NOLAN BONE MARROW,0000646759,"51,418.00",
Department of Health,The Christie NHS Foundation Trust,09/07/2020,Consultancy Services,Strategy,PURE dB LTD,0000646977,"26,400.00",
Department of Health,The Christie NHS Foundation Trust,02/07/2020,All Wards & Departments,The Christie NHS FT Balance,NHS SUPPLY CHAIN,0000645771,"40,467.74",
Department of Health,The Christie NHS Foundation Trust,16/07/2020,All Wards & Departments,The Christie NHS FT Balance,NHS SUPPLY CHAIN,0000646690,"34,129.67",
Department of Health,The Christie NHS Foundation Trust,09/07/2020,All Wards & Departments,The Christie NHS FT Balance,NHS SUPPLY CHAIN,0000646691,"47,076.06",
Department of Health,The Christie NHS Foundation Trust,09/07/2020,All Wards & Departments,The Christie NHS FT Balance,NHS SUPPLY CHAIN,0000646692,"45,503.89",
Department of Health,The Christie NHS Foundation Trust,30/07/2020,All Wards & Departments,The Christie NHS FT Balance,NHS SUPPLY CHAIN,0000647189,"53,326.37",
